[Event "Titled Tuesday Blitz May 30 Late 2023"]
[White "Rangel, Daniel"]
[Black "Kavutskiy, Konstantin"]
[WhiteFideId "2124475"]
[BlackFideId "2026384"]
[WhiteElo "2256"]
[BlackElo "2323"]
[Result "0-1"]
[Round "08"]
[TimeControl "180+2"]
[Date "2023.05.31"]
[WhiteClock "0:00:04"]
[BlackClock "0:00:12"]

1. c4 {[%clk 0:02:59]}  g6 {[%clk 0:02:59]} 2. g3 {[%clk 0:02:57]}  Bg7 {[%clk 0:02:59]} 3. Nc3 {[%clk 0:02:58]}  c5 {[%clk 0:03:00]} 4. Bg2 {[%clk 0:02:59]}  Nc6 {[%clk 0:02:59]} 5. e4 {[%clk 0:02:59]}  d6 {[%clk 0:02:57]} 6. Nge2 {[%clk 0:03:00]}  e6 {[%clk 0:02:57]} 7. O-O {[%clk 0:03:00]}  Nge7 {[%clk 0:02:56]} 8. d3 {[%clk 0:03:00]}  O-O {[%clk 0:02:55]} 9. Be3 {[%clk 0:03:01]}  Nd4 {[%clk 0:02:53]} 10. a3 {[%clk 0:03:01]}  Rb8 {[%clk 0:02:48]} 11. Bxd4 {[%clk 0:02:58]}  cxd4 {[%clk 0:02:47]} 12. Nb5 {[%clk 0:02:59]}  Nc6 {[%clk 0:02:44]} 13. a4 {[%clk 0:02:53]}  a6 {[%clk 0:02:42]} 14. Na3 {[%clk 0:02:53]}  Qa5 {[%clk 0:02:38]} 15. Nc2 {[%clk 0:02:47]}  e5 {[%clk 0:02:34]} 16. Qe1 {[%clk 0:02:40]}  Qxe1 {[%clk 0:02:25]} 17. Rfxe1 {[%clk 0:02:41]}  b5 {[%clk 0:02:22]} 18. cxb5 {[%clk 0:02:30]}  axb5 {[%clk 0:02:23]} 19. a5 {[%clk 0:02:30]}  b4 {[%clk 0:02:15]} 20. Rec1 {[%clk 0:02:24]}  Ba6 {[%clk 0:02:14]} 21. Ne1 {[%clk 0:02:22]}  Rfc8 {[%clk 0:02:09]} 22. Bh3 {[%clk 0:02:21]}  Rc7 {[%clk 0:02:09]} 23. b3 {[%clk 0:02:02]}  Bh6 {[%clk 0:02:03]} 24. Rc2 {[%clk 0:02:00]}  Rbb7 {[%clk 0:02:00]} 25. f4 {[%clk 0:01:54]}  Na7 {[%clk 0:01:55]} 26. Rac1 {[%clk 0:01:52]}  Rc3 {[%clk 0:01:33]} 27. Nxc3 {[%clk 0:01:43]}  bxc3 {[%clk 0:01:34]} 28. Bf1 {[%clk 0:01:33]}  Rxb3 {[%clk 0:01:20]} 29. Ra1 {[%clk 0:01:28]}  exf4 {[%clk 0:01:17]} 30. g4 {[%clk 0:01:18]}  f3 {[%clk 0:00:52]} 31. Nxf3 {[%clk 0:01:14]}  Be3+ {[%clk 0:00:53]} 32. Kg2 {[%clk 0:01:14]}  Nc6 {[%clk 0:00:53]} 33. Ne1 {[%clk 0:00:45]}  Nb4 {[%clk 0:00:49]} 34. Re2 {[%clk 0:00:45]}  Kg7 {[%clk 0:00:19]} 35. Kf3 {[%clk 0:00:33]}  Bg5 {[%clk 0:00:08]} 36. Rg2 {[%clk 0:00:23]}  Rb2 {[%clk 0:00:07]} 37. Rxb2 {[%clk 0:00:21]}  cxb2 {[%clk 0:00:08]} 38. Rb1 {[%clk 0:00:21]}  Bc1 {[%clk 0:00:09]} 39. Ke2 {[%clk 0:00:20]}  Na2 {[%clk 0:00:09]} 40. Kd1 {[%clk 0:00:19]}  Nc3+ {[%clk 0:00:09]} 41. Kc2 {[%clk 0:00:20]}  Nxb1 {[%clk 0:00:10]} 42. Kxb1 {[%clk 0:00:21]}  Kf6 {[%clk 0:00:10]} 43. Nc2 {[%clk 0:00:21]}  Ke5 {[%clk 0:00:10]} 44. Nb4 {[%clk 0:00:18]}  Bc8 {[%clk 0:00:10]} 45. Nc6+ {[%clk 0:00:19]}  Kf4 {[%clk 0:00:10]} 46. Nxd4 {[%clk 0:00:19]}  Kxg4 {[%clk 0:00:09]} 47. Nb3 {[%clk 0:00:19]}  Bf4 {[%clk 0:00:06]} 48. Kxb2 {[%clk 0:00:19]}  Bxh2 {[%clk 0:00:07]} 49. d4 {[%clk 0:00:16]}  h5 {[%clk 0:00:07]} 50. a6 {[%clk 0:00:16]}  Bg1 {[%clk 0:00:06]} 51. Kc3 {[%clk 0:00:15]}  h4 {[%clk 0:00:06]} 52. a7 {[%clk 0:00:12]}  Bb7 {[%clk 0:00:06]} 53. Bg2 {[%clk 0:00:13]}  h3 {[%clk 0:00:05]} 54. Bh1 {[%clk 0:00:13]}  Kg3 {[%clk 0:00:05]} 55. Na5 {[%clk 0:00:10]}  Ba8 {[%clk 0:00:05]} 56. Nc4 {[%clk 0:00:11]}  f5 {[%clk 0:00:04]} 57. Nxd6 {[%clk 0:00:09]}  fxe4 {[%clk 0:00:04]} 58. Nxe4+ {[%clk 0:00:10]}  Kh2 {[%clk 0:00:04]} 59. Ng3 {[%clk 0:00:07]}  Bxh1 {[%clk 0:00:03]} 60. Nxh1 {[%clk 0:00:07]}  Kxh1 {[%clk 0:00:04]} 61. a8=Q+ {[%clk 0:00:08]}  Kh2 {[%clk 0:00:04]} 62. Kd3 {[%clk 0:00:08]}  g5 {[%clk 0:00:05]} 63. Ke2 {[%clk 0:00:08]}  g4 {[%clk 0:00:06]} 64. Qb8+ {[%clk 0:00:06]}  g3 {[%clk 0:00:07]} 65. Kf3 {[%clk 0:00:05]}  Bf2 {[%clk 0:00:07]} 66. Qb2 {[%clk 0:00:04]}  Kg1 {[%clk 0:00:06]} 67. Qb1+ {[%clk 0:00:04]}  Kh2 {[%clk 0:00:07]} 68. Qd3 {[%clk 0:00:04]}  g2 {[%clk 0:00:06]} 69. Kxf2 {[%clk 0:00:03]}  g1=Q+ {[%clk 0:00:07]} 70. Ke2 {[%clk 0:00:04]}  Qg2+ {[%clk 0:00:07]} 71. Ke1 {[%clk 0:00:04]}  Qh1+ {[%clk 0:00:07]} 72. Ke2 {[%clk 0:00:04]}  Qg2+ {[%clk 0:00:08]} 73. Ke1 {[%clk 0:00:05]}  Qg3+ {[%clk 0:00:08]} 74. Qxg3+ {[%clk 0:00:03]}  Kxg3 {[%clk 0:00:09]} 75. Kf1 {[%clk 0:00:04]}  h2 {[%clk 0:00:10]} 76. d5 {[%clk 0:00:04]}  h1=Q+ {[%clk 0:00:11]} 77. Ke2 {[%clk 0:00:04]}  Qxd5 {[%clk 0:00:12]} 0-1


[Site "https://www.chess.com"]

[Event "Titled Tuesday Blitz May 30 Late 2023"]
[White "Thorfinnsson, Bragi"]
[Black "Gutkin, Ilya"]
[WhiteFideId "2300958"]
[BlackFideId "16203470"]
[WhiteElo "2322"]
[BlackElo "2265"]
[Result "1-0"]
[Round "08"]
[TimeControl "180+2"]
[Date "2023.05.31"]
[WhiteClock "0:00:32"]
[BlackClock "0:00:11"]

1. e4 {[%clk 0:02:52]}  e5 {[%clk 0:02:53]} 2. Nc3 {[%clk 0:02:51]}  Nf6 {[%clk 0:02:52]} 3. d4 {[%clk 0:02:50]}  d6 {[%clk 0:02:48]} 4. Nf3 {[%clk 0:02:48]}  Nc6 {[%clk 0:02:43]} 5. h3 {[%clk 0:02:38]}  exd4 {[%clk 0:02:36]} 6. Nxd4 {[%clk 0:02:38]}  Be7 {[%clk 0:02:34]} 7. Nxc6 {[%clk 0:02:23]}  bxc6 {[%clk 0:02:34]} 8. Bd3 {[%clk 0:02:24]}  O-O {[%clk 0:02:33]} 9. O-O {[%clk 0:02:24]}  a5 {[%clk 0:02:31]} 10. a4 {[%clk 0:02:17]}  Ba6 {[%clk 0:02:31]} 11. b3 {[%clk 0:02:16]}  Bxd3 {[%clk 0:02:30]} 12. Qxd3 {[%clk 0:02:17]}  Nd7 {[%clk 0:02:30]} 13. Bb2 {[%clk 0:02:16]}  Bf6 {[%clk 0:02:29]} 14. Rad1 {[%clk 0:02:00]}  Re8 {[%clk 0:02:29]} 15. f3 {[%clk 0:01:59]}  Qb8 {[%clk 0:02:24]} 16. Kh1 {[%clk 0:01:57]}  g6 {[%clk 0:02:15]} 17. Ba1 {[%clk 0:01:57]}  Nc5 {[%clk 0:02:11]} 18. Qd2 {[%clk 0:01:55]}  Qb4 {[%clk 0:02:07]} 19. Na2 {[%clk 0:01:39]}  Qxd2 {[%clk 0:02:07]} 20. Rxd2 {[%clk 0:01:40]}  Bxa1 {[%clk 0:02:05]} 21. Rxa1 {[%clk 0:01:41]}  f5 {[%clk 0:02:00]} 22. exf5 {[%clk 0:01:38]}  gxf5 {[%clk 0:02:00]} 23. Nc3 {[%clk 0:01:38]}  Kf7 {[%clk 0:01:59]} 24. Ne2 {[%clk 0:01:37]}  Re3 {[%clk 0:01:51]} 25. Nd4 {[%clk 0:01:36]}  Kf6 {[%clk 0:01:50]} 26. Nxc6 {[%clk 0:01:34]}  Rae8 {[%clk 0:01:50]} 27. Nxa5 {[%clk 0:01:33]}  Re2 {[%clk 0:01:50]} 28. Rxe2 {[%clk 0:01:20]}  Rxe2 {[%clk 0:01:51]} 29. b4 {[%clk 0:01:21]}  Ne6 {[%clk 0:01:50]} 30. Nc6 {[%clk 0:01:08]}  Rxc2 {[%clk 0:01:42]} 31. b5 {[%clk 0:01:08]}  Nf4 {[%clk 0:01:30]} 32. a5 {[%clk 0:01:06]}  Nxg2 {[%clk 0:01:30]} 33. a6 {[%clk 0:01:06]}  Nh4 {[%clk 0:01:30]} 34. Ra3 {[%clk 0:01:05]}  f4 {[%clk 0:00:57]} 35. a7 {[%clk 0:00:56]}  Nf5 {[%clk 0:00:57]} 36. a8=Q {[%clk 0:00:42]}  Ng3+ {[%clk 0:00:16]} 37. Kg1 {[%clk 0:00:41]}  Rc1+ {[%clk 0:00:11]} 38. Kf2 {[%clk 0:00:33]}  Rc2+ {[%clk 0:00:11]} 39. Ke1 {[%clk 0:00:32]} 1-0


[Site "https://www.chess.com"]

[Event "Titled Tuesday Blitz May 30 Late 2023"]
[White "Golubev, Mikhail"]
[Black "Arnold, Ken"]
[WhiteFideId "14100983"]
[BlackFideId "2056836"]
[WhiteElo "2374"]
[BlackElo "2412"]
[Result "0-1"]
[Round "08"]
[TimeControl "180+2"]
[Date "2023.05.31"]
[WhiteClock "0:00:06"]
[BlackClock "0:00:22"]

1. e4 {[%clk 0:03:00]}  c6 {[%clk 0:02:59]} 2. d4 {[%clk 0:02:59]}  d5 {[%clk 0:02:59]} 3. e5 {[%clk 0:02:59]}  Bf5 {[%clk 0:02:59]} 4. h4 {[%clk 0:02:59]}  h5 {[%clk 0:02:58]} 5. c4 {[%clk 0:03:00]}  e6 {[%clk 0:02:57]} 6. Nc3 {[%clk 0:02:59]}  Nd7 {[%clk 0:02:55]} 7. Nge2 {[%clk 0:02:43]}  a6 {[%clk 0:02:54]} 8. Ng3 {[%clk 0:02:37]}  Bg6 {[%clk 0:02:54]} 9. cxd5 {[%clk 0:02:34]}  cxd5 {[%clk 0:02:54]} 10. Bg5 {[%clk 0:02:29]}  Be7 {[%clk 0:02:49]} 11. Bxe7 {[%clk 0:02:25]}  Nxe7 {[%clk 0:02:48]} 12. Be2 {[%clk 0:02:25]}  Nf5 {[%clk 0:02:45]} 13. Nxh5 {[%clk 0:01:54]}  Bxh5 {[%clk 0:02:44]} 14. Bxh5 {[%clk 0:01:53]}  g6 {[%clk 0:02:44]} 15. Bg4 {[%clk 0:01:27]}  Rxh4 {[%clk 0:02:42]} 16. Rxh4 {[%clk 0:01:14]}  Qxh4 {[%clk 0:02:40]} 17. Bxf5 {[%clk 0:01:13]}  gxf5 {[%clk 0:02:40]} 18. g3 {[%clk 0:01:01]}  Qh2 {[%clk 0:02:24]} 19. Qe2 {[%clk 0:00:53]}  Rc8 {[%clk 0:02:18]} 20. O-O-O {[%clk 0:00:48]}  Nb6 {[%clk 0:02:12]} 21. Qf3 {[%clk 0:00:41]}  Qh6+ {[%clk 0:02:10]} 22. Kb1 {[%clk 0:00:41]}  Nc4 {[%clk 0:02:05]} 23. Ka1 {[%clk 0:00:41]}  b5 {[%clk 0:01:42]} 24. Rh1 {[%clk 0:00:37]}  Qd2 {[%clk 0:01:37]} 25. Qe2 {[%clk 0:00:24]}  Qxd4 {[%clk 0:01:13]} 26. f4 {[%clk 0:00:14]}  Ke7 {[%clk 0:01:01]} 27. Rd1 {[%clk 0:00:14]}  Qe3 {[%clk 0:00:50]} 28. Qh2 {[%clk 0:00:13]}  Nxb2 {[%clk 0:00:47]} 29. Qh4+ {[%clk 0:00:08]}  Kd7 {[%clk 0:00:41]} 30. Qf6 {[%clk 0:00:08]}  Qxc3 {[%clk 0:00:39]} 31. Qxf7+ {[%clk 0:00:07]}  Kc6 {[%clk 0:00:35]} 32. Qxe6+ {[%clk 0:00:06]}  Kb7 {[%clk 0:00:34]} 33. Qxd5+ {[%clk 0:00:07]}  Rc6 {[%clk 0:00:33]} 34. Qd7+ {[%clk 0:00:07]}  Rc7 {[%clk 0:00:28]} 35. Qd5+ {[%clk 0:00:06]}  Kb6 {[%clk 0:00:24]} 36. Qd6+ {[%clk 0:00:06]}  Ka5 {[%clk 0:00:22]} 0-1


[Site "https://www.chess.com"]

[Event "Titled Tuesday Blitz May 30 Late 2023"]
[White "Baidetskyi, Valentin"]
[Black "Qiao, Cindy"]
[WhiteFideId "14142317"]
[BlackFideId "2620243"]
[WhiteElo "2490"]
[BlackElo "1777"]
[Result "1-0"]
[Round "08"]
[TimeControl "180+2"]
[Date "2023.05.31"]
[WhiteClock "0:01:04"]
[BlackClock "0:01:06"]

1. e4 {[%clk 0:03:00]}  e5 {[%clk 0:02:59]} 2. Nf3 {[%clk 0:03:01]}  Nc6 {[%clk 0:02:59]} 3. Nc3 {[%clk 0:03:01]}  Nf6 {[%clk 0:02:59]} 4. h3 {[%clk 0:03:02]}  d5 {[%clk 0:02:59]} 5. exd5 {[%clk 0:03:03]}  Nxd5 {[%clk 0:03:00]} 6. Bb5 {[%clk 0:03:03]}  Nxc3 {[%clk 0:03:00]} 7. bxc3 {[%clk 0:03:04]}  Bd6 {[%clk 0:02:59]} 8. O-O {[%clk 0:03:04]}  O-O {[%clk 0:02:59]} 9. Re1 {[%clk 0:03:05]}  Re8 {[%clk 0:02:56]} 10. d4 {[%clk 0:03:05]}  exd4 {[%clk 0:02:46]} 11. Rxe8+ {[%clk 0:03:06]}  Qxe8 {[%clk 0:02:46]} 12. cxd4 {[%clk 0:03:07]}  Bd7 {[%clk 0:02:44]} 13. Bf1 {[%clk 0:03:07]}  Ne7 {[%clk 0:02:33]} 14. c4 {[%clk 0:03:02]}  c6 {[%clk 0:02:28]} 15. Bb2 {[%clk 0:02:57]}  Ng6 {[%clk 0:02:17]} 16. Qb3 {[%clk 0:02:56]}  Qc8 {[%clk 0:02:03]} 17. Re1 {[%clk 0:02:33]}  Qc7 {[%clk 0:01:58]} 18. c5 {[%clk 0:02:17]}  Be7 {[%clk 0:01:49]} 19. Bc4 {[%clk 0:02:10]}  Rf8 {[%clk 0:01:40]} 20. Bc1 {[%clk 0:01:28]}  Bf6 {[%clk 0:01:37]} 21. Bg5 {[%clk 0:01:25]}  Bxg5 {[%clk 0:01:20]} 22. Nxg5 {[%clk 0:01:25]}  Bc8 {[%clk 0:01:11]} 23. Nxf7 {[%clk 0:01:05]}  Rxf7 {[%clk 0:01:10]} 24. Re8+ {[%clk 0:01:03]}  Nf8 {[%clk 0:01:10]} 25. Bxf7+ {[%clk 0:01:03]}  Qxf7 {[%clk 0:01:08]} 26. Qxf7+ {[%clk 0:01:04]}  Kxf7 {[%clk 0:01:08]} 27. Rxc8 {[%clk 0:01:05]}  Ne6 {[%clk 0:01:07]} 28. Rb8 {[%clk 0:01:03]}  Nxd4 {[%clk 0:01:07]} 29. Rxb7+ {[%clk 0:01:03]}  Kf6 {[%clk 0:01:07]} 30. Rxa7 {[%clk 0:01:04]}  Ne6 {[%clk 0:01:06]} 31. Ra6 {[%clk 0:01:04]} 1-0


[Site "https://www.chess.com"]

[Event "Titled Tuesday Blitz May 30 Late 2023"]
[White "Harriott, Tyrell"]
[Black "Isajevsky, Anton"]
[WhiteFideId "2086484"]
[BlackFideId "4142500"]
[WhiteElo "2107"]
[BlackElo "2510"]
[Result "0-1"]
[Round "08"]
[TimeControl "180+2"]
[Date "2023.05.31"]
[WhiteClock "0:01:05"]
[BlackClock "0:00:09"]

1. d4 {[%clk 0:03:00]}  e6 {[%clk 0:02:59]} 2. e3 {[%clk 0:03:01]}  b6 {[%clk 0:02:56]} 3. f4 {[%clk 0:03:01]}  Bb7 {[%clk 0:02:55]} 4. Nf3 {[%clk 0:03:01]}  f5 {[%clk 0:02:42]} 5. Bd3 {[%clk 0:03:00]}  Nf6 {[%clk 0:02:42]} 6. O-O {[%clk 0:03:00]}  Be7 {[%clk 0:02:40]} 7. Nbd2 {[%clk 0:02:59]}  O-O {[%clk 0:02:40]} 8. Qe2 {[%clk 0:02:59]}  c5 {[%clk 0:02:39]} 9. c3 {[%clk 0:02:58]}  Nc6 {[%clk 0:02:34]} 10. a3 {[%clk 0:02:56]}  d5 {[%clk 0:02:27]} 11. Ne5 {[%clk 0:02:55]}  Nxe5 {[%clk 0:02:24]} 12. fxe5 {[%clk 0:02:54]}  Ne4 {[%clk 0:02:23]} 13. Nf3 {[%clk 0:02:53]}  a5 {[%clk 0:02:18]} 14. Bd2 {[%clk 0:02:52]}  c4 {[%clk 0:02:00]} 15. Bc2 {[%clk 0:02:51]}  b5 {[%clk 0:02:00]} 16. Be1 {[%clk 0:02:51]}  Bc6 {[%clk 0:01:54]} 17. Kh1 {[%clk 0:02:47]}  Be8 {[%clk 0:01:51]} 18. Rg1 {[%clk 0:02:44]}  Bh5 {[%clk 0:01:48]} 19. h3 {[%clk 0:02:45]}  Qe8 {[%clk 0:01:12]} 20. g4 {[%clk 0:02:39]}  fxg4 {[%clk 0:01:10]} 21. hxg4 {[%clk 0:02:40]}  Bg6 {[%clk 0:01:10]} 22. Nh2 {[%clk 0:02:34]}  Ra7 {[%clk 0:00:40]} 23. Rg2 {[%clk 0:02:34]}  Bd8 {[%clk 0:00:37]} 24. Bg3 {[%clk 0:02:34]}  Raf7 {[%clk 0:00:28]} 25. Bf4 {[%clk 0:02:32]}  Bg5 {[%clk 0:00:27]} 26. Bxg5 {[%clk 0:02:25]}  Rf2 {[%clk 0:00:19]} 27. Qd1 {[%clk 0:01:58]}  Rxg2 {[%clk 0:00:15]} 28. Kxg2 {[%clk 0:01:58]}  Nxg5 {[%clk 0:00:07]} 29. Bxg6 {[%clk 0:01:50]}  Qxg6 {[%clk 0:00:07]} 30. Qe2 {[%clk 0:01:47]}  Qe4+ {[%clk 0:00:06]} 31. Kg3 {[%clk 0:01:43]}  Qd3 {[%clk 0:00:04]} 32. Qxd3 {[%clk 0:01:40]}  cxd3 {[%clk 0:00:05]} 33. Rd1 {[%clk 0:01:40]}  d2 {[%clk 0:00:04]} 34. Nf1 {[%clk 0:01:33]}  Ne4+ {[%clk 0:00:04]} 35. Kg2 {[%clk 0:01:33]}  Rf2+ {[%clk 0:00:05]} 36. Kg1 {[%clk 0:01:33]}  Kf7 {[%clk 0:00:04]} 37. Ng3 {[%clk 0:01:31]}  Rf3 {[%clk 0:00:02]} 38. Nxe4 {[%clk 0:01:29]}  dxe4 {[%clk 0:00:03]} 39. Rxd2 {[%clk 0:01:29]}  Rxe3 {[%clk 0:00:04]} 40. Kf2 {[%clk 0:01:26]}  Rf3+ {[%clk 0:00:04]} 41. Kg2 {[%clk 0:01:26]}  Ke7 {[%clk 0:00:04]} 42. Re2 {[%clk 0:01:26]}  Rd3 {[%clk 0:00:04]} 43. Kf2 {[%clk 0:01:25]}  b4 {[%clk 0:00:04]} 44. axb4 {[%clk 0:01:23]}  axb4 {[%clk 0:00:05]} 45. Re3 {[%clk 0:01:17]}  Rd2+ {[%clk 0:00:04]} 46. Re2 {[%clk 0:01:17]}  bxc3 {[%clk 0:00:05]} 47. bxc3 {[%clk 0:01:17]}  Rd3 {[%clk 0:00:05]} 48. Rxe4 {[%clk 0:01:16]}  Rxc3 {[%clk 0:00:05]} 49. Rf4 {[%clk 0:01:13]}  Rd3 {[%clk 0:00:04]} 50. Ke2 {[%clk 0:01:13]}  Rh3 {[%clk 0:00:04]} 51. Kd2 {[%clk 0:01:12]}  h6 {[%clk 0:00:04]} 52. Ke2 {[%clk 0:01:12]}  Ra3 {[%clk 0:00:03]} 53. Rf3 {[%clk 0:01:11]}  Rxf3 {[%clk 0:00:02]} 54. Kxf3 {[%clk 0:01:12]}  g6 {[%clk 0:00:02]} 55. Kf4 {[%clk 0:01:12]}  Kd7 {[%clk 0:00:02]} 56. Ke4 {[%clk 0:01:12]}  Kc6 {[%clk 0:00:03]} 57. Kd3 {[%clk 0:01:06]}  Kd5 {[%clk 0:00:03]} 58. Ke3 {[%clk 0:01:06]}  h5 {[%clk 0:00:03]} 59. gxh5 {[%clk 0:01:06]}  gxh5 {[%clk 0:00:04]} 60. Kd3 {[%clk 0:01:02]}  h4 {[%clk 0:00:04]} 61. Ke3 {[%clk 0:01:02]}  h3 {[%clk 0:00:04]} 62. Kf3 {[%clk 0:01:02]}  Kxd4 {[%clk 0:00:05]} 63. Kg3 {[%clk 0:01:03]}  Kxe5 {[%clk 0:00:06]} 64. Kxh3 {[%clk 0:01:03]}  Kf4 {[%clk 0:00:06]} 65. Kg2 {[%clk 0:01:04]}  Ke3 {[%clk 0:00:05]} 66. Kf1 {[%clk 0:01:03]}  e5 {[%clk 0:00:04]} 67. Ke1 {[%clk 0:01:04]}  e4 {[%clk 0:00:04]} 68. Kf1 {[%clk 0:01:04]}  Kd2 {[%clk 0:00:05]} 69. Kg2 {[%clk 0:01:04]}  e3 {[%clk 0:00:05]} 70. Kf3 {[%clk 0:01:04]}  e2 {[%clk 0:00:06]} 71. Kf4 {[%clk 0:01:05]}  e1=Q {[%clk 0:00:07]} 72. Kf5 {[%clk 0:01:06]}  Qe3 {[%clk 0:00:07]} 73. Kf6 {[%clk 0:01:06]}  Qe4 {[%clk 0:00:07]} 74. Kf7 {[%clk 0:01:06]}  Qc6 {[%clk 0:00:06]} 75. Ke7 {[%clk 0:01:07]}  Kd3 {[%clk 0:00:06]} 76. Kf7 {[%clk 0:01:07]}  Qd6 {[%clk 0:00:06]} 77. Kg7 {[%clk 0:01:06]}  Qe6 {[%clk 0:00:07]} 78. Kh7 {[%clk 0:01:05]}  Qg4 {[%clk 0:00:06]} 79. Kh8 {[%clk 0:01:05]}  Ke4 {[%clk 0:00:07]} 80. Kh7 {[%clk 0:01:05]}  Kf5 {[%clk 0:00:08]} 81. Kh8 {[%clk 0:01:05]}  Kf6 {[%clk 0:00:09]} 0-1


[Site "https://www.chess.com"]

[Event "Titled Tuesday Blitz May 30 Late 2023"]
[White "micke12a"]
[Black "Balla, Tamas-Kristof"]
[BlackFideId "1208497"]
[WhiteElo "2410"]
[BlackElo "2334"]
[Result "0-1"]
[Round "08"]
[TimeControl "180+2"]
[Date "2023.05.31"]
[WhiteClock "0:00:03"]
[BlackClock "0:00:09"]

1. d4 {[%clk 0:03:00]}  d5 {[%clk 0:02:59]} 2. Bf4 {[%clk 0:02:59]}  Nf6 {[%clk 0:02:57]} 3. e3 {[%clk 0:02:58]}  e6 {[%clk 0:02:57]} 4. Nd2 {[%clk 0:02:56]}  Bd6 {[%clk 0:02:56]} 5. Bxd6 {[%clk 0:02:55]}  Qxd6 {[%clk 0:02:57]} 6. Ngf3 {[%clk 0:02:54]}  O-O {[%clk 0:02:57]} 7. c4 {[%clk 0:02:54]}  b6 {[%clk 0:02:52]} 8. cxd5 {[%clk 0:02:53]}  exd5 {[%clk 0:02:48]} 9. Ne5 {[%clk 0:02:52]}  c5 {[%clk 0:02:46]} 10. Ndf3 {[%clk 0:02:47]}  Ba6 {[%clk 0:02:32]} 11. Bxa6 {[%clk 0:02:42]}  Nxa6 {[%clk 0:02:33]} 12. Qe2 {[%clk 0:02:42]}  Nb8 {[%clk 0:02:33]} 13. O-O {[%clk 0:02:41]}  Nc6 {[%clk 0:02:26]} 14. Nxc6 {[%clk 0:02:35]}  Qxc6 {[%clk 0:02:25]} 15. Rac1 {[%clk 0:02:36]}  Qd6 {[%clk 0:02:19]} 16. dxc5 {[%clk 0:02:34]}  bxc5 {[%clk 0:02:19]} 17. Rfd1 {[%clk 0:02:35]}  Rfd8 {[%clk 0:02:15]} 18. b3 {[%clk 0:02:31]}  Rac8 {[%clk 0:02:15]} 19. Nd2 {[%clk 0:02:28]}  h6 {[%clk 0:02:12]} 20. Qd3 {[%clk 0:02:23]}  Ng4 {[%clk 0:02:04]} 21. Nf3 {[%clk 0:02:20]}  Ne5 {[%clk 0:02:04]} 22. Nxe5 {[%clk 0:02:18]}  Qxe5 {[%clk 0:02:05]} 23. Rc2 {[%clk 0:02:11]}  d4 {[%clk 0:01:56]} 24. exd4 {[%clk 0:02:11]}  cxd4 {[%clk 0:01:45]} 25. Rxc8 {[%clk 0:02:01]}  Rxc8 {[%clk 0:01:45]} 26. g3 {[%clk 0:02:00]}  Rd8 {[%clk 0:01:44]} 27. Kg2 {[%clk 0:01:57]}  Qd5+ {[%clk 0:01:39]} 28. Qf3 {[%clk 0:01:54]}  Qa5 {[%clk 0:01:33]} 29. Qe2 {[%clk 0:01:46]}  Qd5+ {[%clk 0:01:29]} 30. Qf3 {[%clk 0:01:33]}  Qa5 {[%clk 0:01:29]} 31. a4 {[%clk 0:01:16]}  Qb4 {[%clk 0:01:23]} 32. Rd3 {[%clk 0:01:16]}  a5 {[%clk 0:01:22]} 33. Qe4 {[%clk 0:01:15]}  Qc5 {[%clk 0:01:20]} 34. h4 {[%clk 0:01:14]}  h5 {[%clk 0:01:18]} 35. Kf3 {[%clk 0:01:14]}  g6 {[%clk 0:01:18]} 36. Kg2 {[%clk 0:01:02]}  Qb4 {[%clk 0:01:16]} 37. g4 {[%clk 0:00:57]}  hxg4 {[%clk 0:01:14]} 38. Qxg4 {[%clk 0:00:58]}  Qc5 {[%clk 0:01:12]} 39. Qe4 {[%clk 0:00:49]}  Qd6 {[%clk 0:00:48]} 40. h5 {[%clk 0:00:46]}  Kg7 {[%clk 0:00:33]} 41. hxg6 {[%clk 0:00:45]}  fxg6 {[%clk 0:00:31]} 42. Qb7+ {[%clk 0:00:37]}  Rd7 {[%clk 0:00:30]} 43. Qb5 {[%clk 0:00:37]}  Qe6 {[%clk 0:00:24]} 44. Kf1 {[%clk 0:00:20]}  Qg4 {[%clk 0:00:16]} 45. Qxa5 {[%clk 0:00:17]}  Re7 {[%clk 0:00:09]} 46. Qd2 {[%clk 0:00:14]}  Qe4 {[%clk 0:00:08]} 47. f3 {[%clk 0:00:11]}  Qh4 {[%clk 0:00:08]} 48. Qf2 {[%clk 0:00:06]}  Qh1+ {[%clk 0:00:07]} 49. Qg1 {[%clk 0:00:05]}  Re1+ {[%clk 0:00:08]} 50. Kxe1 {[%clk 0:00:05]}  Qxg1+ {[%clk 0:00:08]} 51. Kd2 {[%clk 0:00:06]}  Qf2+ {[%clk 0:00:08]} 52. Kc1 {[%clk 0:00:06]}  Qa2 {[%clk 0:00:08]} 53. Rxd4 {[%clk 0:00:03]}  Qa1+ {[%clk 0:00:08]} 54. Kc2 {[%clk 0:00:03]}  Qxd4 {[%clk 0:00:09]} 0-1


[Site "https://www.chess.com"]

[Event "Titled Tuesday Blitz May 30 Late 2023"]
[White "Nilsen, Tobias Lang"]
[Black "Botez, Alexandra"]
[WhiteFideId "1521624"]
[BlackFideId "2603365"]
[WhiteElo "2183"]
[BlackElo "2040"]
[Result "0-1"]
[Round "08"]
[TimeControl "180+2"]
[Date "2023.05.31"]
[WhiteClock "0:00:16"]
[BlackClock "0:00:12"]

1. e4 {[%clk 0:03:00]}  e6 {[%clk 0:02:58]} 2. d4 {[%clk 0:03:00]}  d5 {[%clk 0:02:55]} 3. Nc3 {[%clk 0:03:01]}  Nf6 {[%clk 0:02:51]} 4. e5 {[%clk 0:03:01]}  Nfd7 {[%clk 0:02:48]} 5. f4 {[%clk 0:03:01]}  c5 {[%clk 0:02:49]} 6. Nf3 {[%clk 0:03:02]}  Nc6 {[%clk 0:02:49]} 7. Be3 {[%clk 0:03:03]}  a6 {[%clk 0:02:47]} 8. a3 {[%clk 0:03:03]}  b5 {[%clk 0:02:47]} 9. Bd3 {[%clk 0:03:00]}  cxd4 {[%clk 0:02:39]} 10. Nxd4 {[%clk 0:02:59]}  Nxd4 {[%clk 0:02:38]} 11. Bxd4 {[%clk 0:02:59]}  Bc5 {[%clk 0:02:38]} 12. Ne2 {[%clk 0:02:57]}  Qb6 {[%clk 0:02:36]} 13. c3 {[%clk 0:02:55]}  f5 {[%clk 0:02:19]} 14. b4 {[%clk 0:02:49]}  Bxd4 {[%clk 0:02:18]} 15. Nxd4 {[%clk 0:02:50]}  O-O {[%clk 0:02:15]} 16. O-O {[%clk 0:02:44]}  Nb8 {[%clk 0:02:16]} 17. Kh1 {[%clk 0:02:41]}  Nc6 {[%clk 0:02:16]} 18. Nb3 {[%clk 0:02:36]}  Ra7 {[%clk 0:01:41]} 19. a4 {[%clk 0:02:31]}  Rff7 {[%clk 0:01:24]} 20. Qe2 {[%clk 0:02:23]}  bxa4 {[%clk 0:01:14]} 21. Rxa4 {[%clk 0:02:23]}  d4 {[%clk 0:01:14]} 22. Qf2 {[%clk 0:02:06]}  Bd7 {[%clk 0:00:54]} 23. Rfa1 {[%clk 0:01:59]}  Nxe5 {[%clk 0:00:44]} 24. fxe5 {[%clk 0:01:59]}  Bxa4 {[%clk 0:00:44]} 25. Rxa4 {[%clk 0:02:00]}  Qc6 {[%clk 0:00:41]} 26. Nc5 {[%clk 0:01:27]}  dxc3 {[%clk 0:00:40]} 27. Qc2 {[%clk 0:01:26]}  a5 {[%clk 0:00:31]} 28. Ra1 {[%clk 0:01:02]}  axb4 {[%clk 0:00:28]} 29. Na4 {[%clk 0:00:50]}  Rfd7 {[%clk 0:00:22]} 30. Rd1 {[%clk 0:00:44]}  Qxa4 {[%clk 0:00:20]} 31. Qb1 {[%clk 0:00:41]}  h6 {[%clk 0:00:18]} 32. Rf1 {[%clk 0:00:37]}  Qa2 {[%clk 0:00:17]} 33. Qxb4 {[%clk 0:00:31]}  Rxd3 {[%clk 0:00:15]} 34. h4 {[%clk 0:00:25]}  Rad7 {[%clk 0:00:13]} 35. Qb8+ {[%clk 0:00:19]}  Kh7 {[%clk 0:00:12]} 36. h5 {[%clk 0:00:18]}  Rg3 {[%clk 0:00:13]} 37. Qe8 {[%clk 0:00:16]}  Qxg2# {[%clk 0:00:12]} 0-1


[Site "https://www.chess.com"]